fUSD/lending_fUSD_20250426
["ID","MTS","AMOUNT","RATE_DAILY","PERIOD"]
[359104651,1745709040970,-400.0,0.00019777,2]
[359104653,1745709040980,-400.0,0.00019777,2]
[359104655,1745709040990,-500.0,0.00019777,2]
[359104657,1745709040999,-400.0,0.00019777,2]
[359104659,1745709041009,-400.0,0.00019777,2]
[359104661,1745709041018,-539.97,0.00019777,2]
[359104662,1745709041028,-500.0,0.00019777,2]
[359104664,1745709041038,-579.31,0.00019777,2]
[359104666,1745709041047,-559.81,0.00019777,2]
[359104668,1745709041057,-2905.48,0.00019777,2]
[359104670,1745709041067,-400.0,0.00019777,2]
[359104673,1745709041078,-400.0,0.00019777,2]
[359104675,1745709041089,-400.0,0.00019777,2]
[359104677,1745709041099,-400.0,0.00019777,2]
[359104679,1745709041109,-400.0,0.00019777,2]
[359104681,1745709041121,-400.0,0.00019777,2]
[359104683,1745709041130,-150.50202754,0.00019777,2]
[359104685,1745709041140,-500.0,0.00019777,2]
[359104687,1745709041150,-400.0,0.00019777,2]
[359104689,1745709041159,-400.0,0.00019777,2]
[359104691,1745709041169,-458.52,0.00019777,2]
[359104693,1745709041179,-400.0,0.00019777,2]
[359104695,1745709041188,-654.51,0.00019777,2]
[359104697,1745709041198,-487.91,0.00019777,2]
[359104699,1745709041208,-547.58,0.00019777,2]
[359104701,1745709041217,-500.0,0.00019777,2]
[359104703,1745709041228,-400.0,0.00019777,2]
[359104705,1745709041238,-400.0,0.00019777,2]
[359104707,1745709041247,-400.0,0.00019777,2]
[359104709,1745709041258,-400.0,0.00019777,2]
[359104711,1745709041267,-400.0,0.00019777,2]
[359104713,1745709041277,-400.0,0.00019777,2]
[359104715,1745709041287,-500.0,0.00019777,2]
[359104717,1745709041297,-400.0,0.00019777,2]
[359104719,1745709041306,-400.0,0.00019777,2]
[359104721,1745709041316,-400.0,0.00019777,2]
[359104723,1745709041325,-690.97,0.00019777,2]
[359104725,1745709041335,-400.0,0.00019777,2]
[359104727,1745709041345,-584.33,0.00019777,2]
[359104729,1745709041354,-400.0,0.00019777,2]
[359104731,1745709041364,-531.68,0.00019777,2]
[359104733,1745709041374,-400.0,0.00019777,2]
[359104735,1745709041384,-400.0,0.00019777,2]
[359104737,1745709041394,-400.0,0.00019777,2]
[359104740,1745709041414,-400.0,0.00019777,2]
[359104742,1745709041426,-662.3,0.00019777,2]
[359104744,1745709041437,-400.0,0.00019777,2]
[359104747,1745709041447,-681.38,0.00019777,2]
[359104749,1745709041457,-400.0,0.00019777,2]
[359104751,1745709041467,-740.15,0.00019777,2]
[359104753,1745709041477,-400.0,0.00019777,2]
[359104755,1745709041489,-795.74,0.00019777,2]
[359104757,1745709041499,-400.0,0.00019777,2]
[359104759,1745709041509,-400.0,0.00019777,2]
[359104761,1745709041518,-610.59,0.00019777,2]
[359104763,1745709041528,-400.0,0.00019777,2]
[359104765,1745709041538,-400.0,0.00019777,2]
[359104767,1745709041547,-4035.47,0.00019777,2]
[359104769,1745709041557,-400.0,0.00019777,2]
[359104771,1745709041566,-400.0,0.00019777,2]
[359104773,1745709041576,-4462.53,0.00019777,2]
[359104775,1745709041586,-539.33,0.00019777,2]
[359104777,1745709041595,-400.0,0.00019777,2]
[359104779,1745709041605,-400.0,0.00019777,2]
[359104781,1745709041615,-1849.04,0.00019777,2]
[359104783,1745709041625,-461.02,0.00019777,2]
[359104785,1745709041634,-500.0,0.00019777,2]
[359104787,1745709041645,-500.0,0.00019777,2]
[359104789,1745709041654,-3462.36,0.00019777,2]
[359104791,1745709041664,-214.34432765,0.00019777,2]
[359104793,1745709041674,-150.0,0.00019777,2]
[359104795,1745709041684,-400.0,0.00019777,2]
[359104797,1745709041694,-150.0,0.00019777,2]
[359104799,1745709041704,-150.0,0.00019777,2]
[359104802,1745709041714,-400.0,0.00019777,2]
[359104803,1745709041724,-600.3,0.00019777,2]
[359104806,1745709041734,-490.52,0.00019777,2]
[359104808,1745709041744,-489.05,0.00019777,2]
[359104810,1745709041754,-400.0,0.00019777,2]
[359104812,1745709041764,-750.72,0.00019777,2]
[359104814,1745709041774,-782.38,0.00019777,2]
[359104816,1745709041783,-460.98,0.00019777,2]
[359104818,1745709041793,-478.55,0.00019777,2]
[359104820,1745709041802,-736.63,0.00019777,2]
[359104822,1745709041811,-400.0,0.00019777,2]
[359104824,1745709041821,-680.79,0.00019777,2]
[359104826,1745709041831,-500.0,0.00019777,2]
[359104828,1745709041841,-400.0,0.00019777,2]
[359104830,1745709041855,-400.0,0.00019777,2]
[359104832,1745709041866,-400.0,0.00019777,2]
[359104834,1745709041875,-486.21,0.00019777,2]
[359104837,1745709041886,-400.0,0.00019777,2]
[359104839,1745709041895,-942.99,0.00019777,2]
[359104841,1745709041905,-400.0,0.00019777,2]
[359104843,1745709041915,-899.34,0.00019777,2]
[359104845,1745709041924,-400.0,0.00019777,2]
[359104847,1745709041933,-500.0,0.00019777,2]
[359104848,1745709041943,-380.18,0.00019777,2]
[359104850,1745709041953,-150.0,0.00019777,2]
[359104853,1745709041963,-400.0,0.00019777,2]
[359104854,1745709041972,-200.0,0.00019777,2]
[359104857,1745709041982,-616.0,0.00019777,2]
[359104859,1745709041992,-400.0,0.00019777,2]
[359104861,1745709042001,-150.0,0.00019777,2]
[359104863,1745709042011,-671.65,0.00019777,2]
[359104865,1745709042020,-400.0,0.00019777,2]
[359104867,1745709042030,-701.61,0.00019777,2]
[359104869,1745709042040,-429.78,0.00019777,2]
[359104871,1745709042049,-649.43,0.00019777,2]
[359104873,1745709042060,-696.85,0.00019777,2]
[359104875,1745709042070,-150.0,0.00019777,2]
[359104877,1745709042079,-531.85,0.00019777,2]
[359104879,1745709042091,-150.0,0.00019777,2]
[359104881,1745709042102,-150.0,0.00019777,2]
[359104883,1745709042113,-188076.24664689,0.00019777,2]
[359104885,1745709042124,-735.8646718,0.00019786,2]
[359104888,1745709042136,-1391.16398843,0.00019801,2]
[359104890,1745709042147,-150.0,0.00019804,2]
[359104892,1745709042158,-150.0,0.00019804,2]
[359104894,1745709042169,-616.0,0.00019804,2]
[359104896,1745709042181,-150.0,0.00019804,2]
[359104898,1745709042192,-1391.16398843,0.00019826,2]
[359104901,1745709042203,-200.0,0.00019832,2]
[359104903,1745709042214,-200.0,0.00019832,2]
[359104905,1745709042224,-616.0,0.00019832,2]
[359104907,1745709042236,-1391.16398843,0.0001985,2]
[359104909,1745709042248,-616.0,0.00019859,2]
[359104912,1745709042260,-151.0,0.00019872,2]
[359104915,1745709042270,-151.0,0.00019873,2]
[359104918,1745709042282,-151.0,0.00019873,2]
[359104920,1745709042298,-151.0,0.00019873,2]
[359104922,1745709042309,-151.0,0.00019873,2]
[359104924,1745709042320,-1391.16398843,0.00019875,2]
[359104926,1745709042331,-3365.649,0.0001988,2]
[359104929,1745709042342,-176.361,0.0001988,2]
[359104931,1745709042352,-167.28667142,0.00019886,2]
[359104933,1745709042363,-616.0,0.00019887,2]
[359104935,1745709042374,-216.3324804,0.000199,2]
[359104937,1745709042385,-1391.16398843,0.000199,2]
[359104939,1745709042395,-168.56609644,0.000199,2]
[359104941,1745709042407,-616.0,0.00019914,2]
[359104943,1745709042421,-708.516,0.00019924,2]
[359104946,1745709042432,-1336.0,0.00019924,2]
[359104948,1745709042442,-1287.0,0.00019924,2]
[359104950,1745709042453,-796.0,0.00019924,2]
[359104952,1745709042463,-2063.0,0.00019924,2]
[359104954,1745709042475,-911.0,0.00019924,2]
[359104957,1745709042486,-1446.0,0.00019924,2]
[359104959,1745709042497,-548.0,0.00019924,2]
[359104962,1745709042508,-579.0,0.00019924,2]
[359104964,1745709042519,-3991.0,0.00019924,2]
[359104966,1745709042530,-6193.0,0.00019924,2]
[359104968,1745709042541,-153.0,0.00019924,2]
[359104970,1745709042552,-727.082,0.00019924,2]
[359104972,1745709042564,-616.0,0.00019941,2]
[359104974,1745709042574,-150.0,0.00019944,2]
[359104977,1745709042586,-500.0,0.00019965,2]
[359104979,1745709042597,-500.0,0.00019965,2]
[359104981,1745709042608,-585.62,0.00019965,2]
[359104983,1745709042618,-585.62,0.00019965,2]
[359104985,1745709042629,-500.0,0.00019965,2]
[359104987,1745709042639,-500.0,0.00019965,2]
[359104989,1745709042650,-500.0,0.00019965,2]
[359104991,1745709042661,-500.0,0.00019965,2]
[359104993,1745709042672,-500.0,0.00019965,2]
[359104996,1745709042682,-616.0,0.00019969,2]
[359104998,1745709042694,-637.35005319,0.00019969,2]
[359105000,1745709042705,-500.0,0.00019971,2]
[359105002,1745709042715,-696.85,0.00019971,2]
[359105005,1745709042730,-400.0,0.00019972,2]
[359105007,1745709042741,-400.0,0.00019972,2]
[359105009,1745709042752,-400.0,0.00019972,2]
[359105010,1745709042764,-400.0,0.00019972,2]
[359105012,1745709042775,-400.0,0.00019972,2]
[359105014,1745709042786,-488.20468367,0.00019972,2]
[359105016,1745709042796,-400.0,0.00019972,2]
[359105018,1745709042807,-400.0,0.00019972,2]
[359105021,1745709042818,-110760.7062807,0.00019972,2]
[359105023,1745709042828,-3030.783422,0.00019972,2]
[359105025,1745709042839,-26590.3140028,0.00019972,2]
[359105027,1745709042850,-151.0,0.00019972,2]
[359105029,1745709042861,-151.0,0.00019972,2]
[359105031,1745709042871,-156.646834,0.00019972,2]
[359105033,1745709042882,-151.0,0.00019972,2]
[359105035,1745709042893,-1672.5305614,0.00019972,2]
[359105037,1745709042906,-151.0,0.00019972,2]
[359105040,1745709042916,-151.0,0.00019972,2]
[359105042,1745709042927,-6017.9648511,0.00019972,2]
[359105044,1745709042938,-178935.454,0.00019972,2]
[359105046,1745709042950,-151.0,0.00019972,2]
[359105048,1745709042960,-151.0,0.00019972,2]
[359105050,1745709042972,-151.0,0.00019972,2]
[359105052,1745709042982,-151.0,0.00019972,2]
[359105054,1745709042993,-151.0,0.00019972,2]
[359105056,1745709043004,-927.368738,0.00019972,2]
[359105058,1745709043015,-152.016543,0.00019972,2]
[359105060,1745709043026,-500.0,0.00019972,2]
[359105063,1745709043037,-715.951003,0.00019972,2]
[359105065,1745709043048,-715.951003,0.00019972,2]
[359105067,1745709043058,-232.984158,0.00019972,2]
[359105069,1745709043069,-232.984158,0.00019972,2]
[359105071,1745709043080,-151.0,0.00019972,2]
[359105073,1745709043092,-151.0,0.00019972,2]
[359105075,1745709043102,-151.0,0.00019972,2]
[359105078,1745709043113,-151.0,0.00019972,2]
[359105080,1745709043124,-696.85,0.00019972,2]
[359105082,1745709043135,-533.574428,0.00019972,2]
[359105084,1745709043145,-533.574428,0.00019972,2]
[359105086,1745709043156,-187.0,0.00019973,2]
[359105088,1745709043166,-500.0,0.00019973,2]
[359105090,1745709043177,-500.0,0.00019973,2]
[359105092,1745709043188,-500.0,0.00019973,2]
[359105094,1745709043198,-500.0,0.00019973,2]
[359105096,1745709043209,-500.0,0.00019973,2]
[359105099,1745709043219,-500.0,0.00019973,2]
[359105101,1745709043230,-500.0,0.00019973,2]
[359105103,1745709043240,-500.0,0.00019973,2]
[359105105,1745709043251,-500.0,0.00019973,2]
[359105107,1745709043262,-500.0,0.00019973,2]
[359105109,1745709043273,-500.0,0.00019973,2]
[359105111,1745709043284,-500.0,0.00019973,2]
[359105113,1745709043294,-500.0,0.00019973,2]
[359105115,1745709043305,-500.0,0.00019973,2]
[359105117,1745709043316,-631.98009462,0.00019973,2]
[359105120,1745709043327,-500.0,0.00019978,2]
[359105122,1745709043338,-585.62,0.00019978,2]
[359105124,1745709043348,-500.0,0.00019978,2]
[359105126,1745709043359,-151.0,0.00019978,2]
[359105128,1745709043369,-151.0,0.00019978,2]
[359105130,1745709043379,-151.0,0.00019978,2]
[359105132,1745709043390,-151.0,0.00019978,2]
[359105134,1745709043400,-153.660397,0.00019978,2]
[359105136,1745709043413,-250.46,0.00019978,2]
[359105139,1745709043424,-196.716499,0.00019978,2]
[359105141,1745709043435,-196.716499,0.00019978,2]
[359105143,1745709043445,-151.0,0.00019978,2]
[359105145,1745709043455,-500.0,0.00019979,2]
[359105147,1745709043467,-500.0,0.00019979,2]
[359105149,1745709043478,-500.0,0.00019979,2]
[359105151,1745709043488,-585.62,0.00019979,2]
[359105153,1745709043498,-585.62,0.00019979,2]
[359105155,1745709043508,-585.62,0.00019979,2]
[359105157,1745709043519,-500.0,0.00019979,2]
[359105159,1745709043531,-500.0,0.00019979,2]
[359105161,1745709043541,-500.0,0.00019979,2]
[359105163,1745709043551,-151.0,0.00019979,2]
[359105165,1745709043561,-151.0,0.00019979,2]
[359105168,1745709043572,-152.350808,0.00019979,2]
[359105170,1745709043583,-155.922673,0.00019979,2]
[359105172,1745709043593,-299.45988,0.00019979,2]
[359105174,1745709043603,-215.28252671,0.00019979,2]
[359105176,1745709043614,-151.0,0.0001998,2]
[359105178,1745709043625,-166.112275,0.0001998,2]
[359105180,1745709043635,-166.112275,0.0001998,2]
[359105182,1745709043646,-151.0,0.0001998,2]
[359105183,1745709043656,-151.0,0.0001998,2]
[359105184,1745709043667,-151.0,0.0001998,2]
[359105185,1745709043678,-445.483463,0.0001998,2]
[359105186,1745709043688,-445.483463,0.0001998,2]
[359105187,1745709043699,-300.0,0.00019984,2]
[359105188,1745709043709,-666.0,0.00019985,2]
[359105189,1745709043719,-300.0,0.00019985,2]
[359105190,1745709043730,-250.10347,0.00019985,2]
[359105191,1745709043740,-166.112275,0.00019985,2]
[359105192,1745709043750,-166.112275,0.00019985,2]
[359105193,1745709043760,-585.62,0.00019985,2]
[359105194,1745709043770,-585.62,0.00019985,2]
[359105195,1745709043781,-500.0,0.00019985,2]
[359105196,1745709043791,-500.0,0.00019985,2]
[359105197,1745709043802,-151.0,0.00019985,2]
[359105199,1745709043813,-153.192787,0.00019985,2]
[359105201,1745709043823,-151.0,0.00019985,2]
[359105203,1745709043833,-151.0,0.00019985,2]
[359105205,1745709043845,-155.511929,0.00019985,2]
[359105208,1745709043857,-151.0,0.00019985,2]
[359105210,1745709043868,-151.0,0.00019985,2]
[359105212,1745709043877,-249.071769,0.00019985,2]
[359105214,1745709043888,-927.368738,0.00019985,2]
[359105216,1745709043898,-213.105836,0.00019985,2]
[359105218,1745709043908,-151.0,0.00019985,2]
[359105220,1745709043919,-151.0,0.00019985,2]
[359105222,1745709043929,-500.0,0.00019985,2]
[359105224,1745709043939,-500.0,0.00019985,2]
[359105226,1745709043950,-500.0,0.00019985,2]
[359105228,1745709043960,-500.0,0.00019985,2]
[359105230,1745709043972,-500.0,0.00019985,2]
[359105232,1745709043982,-715.951003,0.00019985,2]
[359105235,1745709043992,-715.951003,0.00019985,2]
[359105237,1745709044003,-232.984158,0.00019985,2]
[359105239,1745709044012,-232.984158,0.00019985,2]
[359105241,1745709044022,-151.0,0.00019985,2]
[359105243,1745709044032,-151.0,0.00019985,2]
[359105245,1745709044042,-151.0,0.00019985,2]
[359105247,1745709044052,-696.85,0.00019985,2]
[359105249,1745709044062,-696.85,0.00019985,2]
[359105251,1745709044073,-696.85,0.00019985,2]
[359105253,1745709044083,-696.85,0.00019985,2]
[359105255,1745709044093,-696.85,0.00019985,2]
[359105257,1745709044104,-300.0,0.00019985,2]
[359105259,1745709044114,-300.0,0.00019985,2]
[359105261,1745709044124,-802846.09577846,0.00019986,2]
[359105265,1745709044149,-7968.601719,0.00019986,2]
[359105267,1745709044160,-452.40084142,0.00019986,2]
[359105269,1745709044170,-151.0,0.00019986,2]
[359105271,1745709044181,-151.0,0.00019986,2]
[359105273,1745709044191,-151.0,0.00019986,2]
[359105275,1745709044202,-151.0,0.00019986,2]
[359105277,1745709044213,-151.0,0.00019986,2]
[359105279,1745709044223,-153.144848,0.00019986,2]
[359105282,1745709044233,-151.0,0.00019986,2]
[359105284,1745709044244,-155.5311,0.00019986,2]
[359105286,1745709044254,-151.0,0.00019986,2]
[359105288,1745709044265,-152.301411,0.00019986,2]
[359105290,1745709044276,-321.802841,0.00019986,2]
[359105292,1745709044287,-321.802841,0.00019986,2]
[359105294,1745709044299,-321.802841,0.00019986,2]
[359105296,1745709044310,-321.802841,0.00019986,2]
[359105299,1745709044320,-153.481537,0.00019986,2]
[359105301,1745709044331,-163.421921,0.00019986,2]
[359105303,1745709044342,-215.514978,0.00019986,2]
[359105305,1745709044352,-151.0,0.00019986,2]
[359105307,1745709044364,-166.112275,0.00019986,2]
[359105309,1745709044375,-166.112275,0.00019986,2]
[359105311,1745709044385,-151.0,0.00019986,2]
[359105313,1745709044396,-151.0,0.00019986,2]
[359105315,1745709044406,-151.0,0.00019986,2]
[359105318,1745709044422,-151.0,0.00019986,2]
[359105320,1745709044434,-151.0,0.00019986,2]
[359105353,1745709044739,-151.0,0.00019986,2]
[359105355,1745709044749,-151.0,0.00019986,2]
[359105357,1745709044758,-151.0,0.00019986,2]
[359105359,1745709044768,-151.0,0.00019986,2]
[359105361,1745709044778,-151.0,0.00019986,2]
[359105363,1745709044787,-151.0,0.00019986,2]
[359105365,1745709044797,-151.0,0.00019986,2]
[359105367,1745709044806,-151.0,0.00019986,2]
[359105369,1745709044816,-628.450043,0.00019986,2]
[359105371,1745709044825,-628.450043,0.00019986,2]
[359105373,1745709044835,-151.0,0.00019986,2]
[359105375,1745709044844,-153.291055,0.00019986,2]
[359105377,1745709044854,-151.0,0.00019986,2]
[359105379,1745709044866,-158.424031,0.00019986,2]
[359105381,1745709044875,-151.0,0.00019986,2]
[359105383,1745709044885,-151.0,0.00019986,2]
[359105385,1745709044895,-151.0,0.00019986,2]
[359105387,1745709044904,-151.0,0.00019986,2]
[359105389,1745709044914,-151.0,0.00019986,2]
[359105391,1745709044924,-152.021036,0.00019986,2]
[359105393,1745709044933,-156.326837,0.00019986,2]
[359105395,1745709044943,-151.0,0.00019986,2]
[359105397,1745709044953,-151.0,0.00019986,2]
[359105399,1745709044962,-151.0,0.00019986,2]
[359105401,1745709044972,-151.0,0.00019986,2]
[359105404,1745709044982,-151.0,0.00019986,2]
[359105406,1745709044992,-151.0,0.00019986,2]
[359105408,1745709045001,-151.0,0.00019986,2]
[359105410,1745709045011,-153.995718,0.00019986,2]
[359105412,1745709045021,-151.0,0.00019986,2]
[359105414,1745709045030,-151.0,0.00019986,2]
[359105416,1745709045039,-151.0,0.00019986,2]
[359105418,1745709045049,-158.679657,0.00019986,2]
[359105420,1745709045058,-151.0,0.00019986,2]
[359105422,1745709045068,-151.0,0.00019986,2]
[359105424,1745709045077,-151.0,0.00019986,2]
[359105425,1745709045087,-151.0,0.00019986,2]
[359105426,1745709045097,-151.0,0.00019986,2]
[359105427,1745709045106,-151.0,0.00019986,2]
[359105428,1745709045116,-151.0,0.00019986,2]
[359105429,1745709045126,-151.0,0.00019986,2]
[359105430,1745709045136,-151.0,0.00019986,2]
[359105431,1745709045146,-151.0,0.00019986,2]
[359105432,1745709045156,-151.0,0.00019986,2]
[359105433,1745709045166,-151.0,0.00019986,2]
[359105434,1745709045175,-294.062438,0.00019986,2]
[359105435,1745709045186,-181.422738,0.00019986,2]
[359105436,1745709045196,-98861.5455591,0.00019986,2]
[359105437,1745709045206,-86962.3848376,0.00019986,2]
[359105439,1745709045215,-276.175567,0.00019986,2]
[359105441,1745709045225,-276.175567,0.00019986,2]
[359105442,1745709045235,-276.175567,0.00019986,2]
[359105445,1745709045244,-276.175567,0.00019986,2]
[359105448,1745709045255,-151.0,0.00019986,2]
[359105450,1745709045264,-2708.3066421,0.00019986,2]
[359105452,1745709045274,-2385.8298623,0.00019986,2]
[359105454,1745709045283,-151.0,0.00019986,2]
[359105456,1745709045293,-151.0,0.00019986,2]
[359105458,1745709045302,-151.0,0.00019986,2]
[359105460,1745709045312,-151.0,0.00019986,2]
[359105461,1745709045321,-151.0,0.00019986,2]
[359105463,1745709045330,-151.0,0.00019986,2]
[359105465,1745709045340,-151.0,0.00019986,2]
[359105467,1745709045349,-151.0,0.00019986,2]
[359105469,1745709045359,-151.0,0.00019986,2]
[359105471,1745709045369,-196.716499,0.00019986,2]
[359105473,1745709045378,-196.716499,0.00019986,2]
[359105476,1745709045389,-154.110067,0.00019986,2]
[359105477,1745709045399,-151.0,0.00019986,2]
[359105479,1745709045409,-151.0,0.00019986,2]
[359105481,1745709045420,-151.0,0.00019986,2]
[359105483,1745709045431,-151.0,0.00019986,2]
[359105485,1745709045440,-151.0,0.00019986,2]
[359105487,1745709045450,-290.543148,0.00019986,2]
[359105489,1745709045461,-290.543148,0.00019986,2]
[359105491,1745709045470,-290.543148,0.00019986,2]
[359105493,1745709045480,-290.543148,0.00019986,2]
[359105495,1745709045491,-23789.8489299,0.00019986,2]
[359105498,1745709045501,-20989.3838571,0.00019986,2]
[359105500,1745709045511,-151.0,0.00019986,2]
[359105502,1745709045520,-445.483463,0.00019986,2]
[359105503,1745709045530,-445.483463,0.00019986,2]
[359105505,1745709045539,-445.483463,0.00019986,2]
[359105507,1745709045549,-254.377851,0.00019986,2]
[359105509,1745709045559,-445.483463,0.00019986,2]
[359105511,1745709045568,-445.483463,0.00019986,2]
[359105513,1745709045578,-445.483463,0.00019986,2]
[359105515,1745709045587,-151.0,0.00019986,2]
[359105517,1745709045597,-151.0,0.00019986,2]
[359105519,1745709045607,-151.0,0.00019986,2]
[359105521,1745709045617,-151.0,0.00019986,2]
[359105523,1745709045627,-151.0,0.00019986,2]
[359105525,1745709045636,-1498.1303615,0.00019986,2]
[359105526,1745709045646,-1323.7301616,0.00019986,2]
[359105527,1745709045655,-154.025265,0.00019986,2]
[359105528,1745709045665,-5390.4520885,0.00019986,2]
[359105529,1745709045675,-4762.939326,0.00019986,2]
[359105530,1745709045685,-160277.2724,0.00019986,2]
[359105531,1745709045695,-133040.21138829,0.00019986,2]
[359105534,1745709046721,-431.25555036,0.00019676,2]
[359105535,1745709046730,-400.0,0.00019776,2]
[359105536,1745709046740,-183.98776066,0.00019986,2]
[359105537,1745709046765,-8394.89165105,0.00019986,2]
[359105538,1745709046774,-151.0,0.00019986,2]
[359105539,1745709046861,-151.0,0.00019986,2]
[359105540,1745709046871,-249.604868,0.00019986,2]
[359105541,1745709046881,-927.368738,0.00019986,2]
[359105542,1745709046890,-927.368738,0.00019986,2]
[359105543,1745709046899,-151.0,0.00019986,2]
[359105544,1745709046909,-151.0,0.00019986,2]
[359105545,1745709046918,-151.0,0.00019986,2]
[359105546,1745709046928,-151.0,0.00019986,2]
[359105547,1745709046937,-168.694553,0.00019986,2]
[359105548,1745709046947,-715.951003,0.00019986,2]
[359105549,1745709046956,-715.951003,0.00019986,2]
[359105550,1745709046965,-715.951003,0.00019986,2]
[359105551,1745709046974,-715.951003,0.00019986,2]
[359105552,1745709046984,-232.984158,0.00019986,2]
[359105553,1745709046993,-232.984158,0.00019986,2]
[359105554,1745709047002,-232.984158,0.00019986,2]
[359105555,1745709047012,-232.984158,0.00019986,2]
[359105556,1745709047021,-151.0,0.00019986,2]
[359105557,1745709047030,-151.0,0.00019986,2]
[359105558,1745709047039,-151.0,0.00019986,2]
[359105559,1745709047048,-151.0,0.00019986,2]
[359105560,1745709047058,-151.0,0.00019986,2]
[359105561,1745709047067,-166.697118,0.00019986,2]
[359105562,1745709047077,-151.0,0.00019986,2]
[359105563,1745709047086,-151.0,0.00019986,2]
[359105564,1745709047096,-216.061418,0.00019986,2]
[359105565,1745709047106,-533.574428,0.00019986,2]
[359105566,1745709047115,-533.574428,0.00019986,2]
[359105567,1745709047125,-533.574428,0.00019986,2]
[359105568,1745709047134,-533.574428,0.00019986,2]
[359105569,1745709047143,-533.574428,0.00019986,2]
[359105570,1745709047152,-533.574428,0.00019986,2]
[359105571,1745709047161,-637.35005319,0.0001999,2]
[359105572,1745709047172,-637.35005319,0.0001999,2]
[359105573,1745709047181,-616.0,0.00019996,2]
[359105574,1745709047191,-585.62,0.00019998,2]
[359105575,1745709047202,-500.0,0.00019998,2]
[359105576,1745709047211,-500.0,0.00019999,2]
[359105577,1745709047220,-500.0,0.00019999,2]
[359105578,1745709047231,-500.0,0.00019999,2]
[359105579,1745709047241,-500.0,0.00019999,2]
[359105580,1745709047250,-500.0,0.00019999,2]
[359105581,1745709047259,-500.0,0.00019999,2]
[359105582,1745709047269,-500.0,0.00019999,2]
[359105583,1745709047279,-500.0,0.00019999,2]
[359105584,1745709047289,-500.0,0.00019999,2]
[359105585,1745709047299,-500.0,0.00019999,2]
[359105586,1745709047308,-500.0,0.00019999,2]
[359105587,1745709047317,-500.0,0.00019999,2]
[359105588,1745709047326,-500.0,0.00019999,2]
[359105589,1745709047336,-500.0,0.00019999,2]
[359105590,1745709047345,-500.0,0.00019999,2]
[359105591,1745709047355,-629.738129,0.00019999,2]
[359105593,1745709047364,-500.0,0.00019999,2]
[359105594,1745709047373,-500.0,0.00019999,2]
[359105595,1745709047383,-500.0,0.00019999,2]
[359105596,1745709047392,-500.0,0.00019999,2]
[359105597,1745709047402,-300.0,0.00019999,2]
[359105598,1745709047415,-300.0,0.00019999,2]
[359105599,1745709047424,-300.0,0.00019999,2]
[359105600,1745709047434,-300.0,0.00019999,2]
[359105601,1745709047443,-3544.45841371,0.00019999,2]
[359105602,1745709047453,-231.5730995,0.00019999,2]
[359105603,1745709047463,-585.62,0.00019999,2]
[359105605,1745709047473,-585.62,0.00019999,2]
[359105607,1745709047482,-585.62,0.00019999,2]
[359105609,1745709047493,-585.62,0.00019999,2]
[359105611,1745709047503,-585.62,0.00019999,2]